[Event "Live Chess"]
[Site "Chess.com"]
[Date "2024.06.01"]
[Round "-"]
[White "FlyingChessKestrel13"]
[Black "akp42"]
[Result "1-0"]
[WhiteElo "2131"]
[BlackElo "1995"]
[TimeControl "300"]
[EndTime "9:47:37 PDT"]
[Termination "FlyingChessKestrel13 won by resignation"]

1. e3 {[%clk 0:04:57.4]} 1... d5 {[%clk 0:04:55.1]} 2. c4 {[%clk 0:04:56.6]}
2... Nf6 {[%clk 0:04:52.8]} 3. cxd5 {[%clk 0:04:48]} 3... Nxd5 {[%clk
0:04:51.4]} 4. Nc3 {[%clk 0:04:47.9]} 4... Nxc3 {[%clk 0:04:48.6]} 5. bxc3
{[%clk 0:04:46.6]} 5... g6 {[%clk 0:04:47.3]} 6. Nf3 {[%clk 0:04:45.7]} 6... Bg7
{[%clk 0:04:46.3]} 7. Bc4 {[%clk 0:04:44.7]} 7... O-O {[%clk 0:04:45.9]} 8. O-O
{[%clk 0:04:43.3]} 8... Nd7 {[%clk 0:04:44]} 9. Bb3 {[%clk 0:04:42.1]} 9... Nf6
{[%clk 0:04:34.7]} 10. d4 {[%clk 0:04:40.7]} 10... c6 {[%clk 0:04:31.7]} 11. c4
{[%clk 0:04:39.7]} 11... Bf5 {[%clk 0:04:30.5]} 12. Bb2 {[%clk 0:04:38]} 12...
Qc7 {[%clk 0:04:29.1]} 13. Bc2 {[%clk 0:04:36.3]} 13... Bxc2 {[%clk 0:04:26.7]}
14. Qxc2 {[%clk 0:04:35]} 14... Rad8 {[%clk 0:04:25.7]} 15. e4 {[%clk
0:04:32.8]} 15... Qf4 {[%clk 0:04:14.2]} 16. e5 {[%clk 0:04:30.3]} 16... Ne4
{[%clk 0:04:02.4]} 17. Rfe1 {[%clk 0:04:21.6]} 17... Ng5 {[%clk 0:03:58.1]} 18.
Nxg5 {[%clk 0:04:18.9]} 18... Qxg5 {[%clk 0:03:57]} 19. Qe4 {[%clk 0:04:13.4]}
19... e6 {[%clk 0:03:52.2]} 20. f4 {[%clk 0:04:05.4]} 20... Qg4 {[%clk
0:03:45.2]} 21. h3 {[%clk 0:04:02.3]} 21... Qf5 {[%clk 0:03:37.7]} 22. Qxf5
{[%clk 0:04:00.6]} 22... gxf5 {[%clk 0:03:36.8]} 23. g4 {[%clk 0:03:59.2]} 23...
h5 {[%clk 0:03:27.8]} 24. gxf5 {[%clk 0:03:54.4]} 24... Bh6 {[%clk 0:03:24]} 25.
fxe6 {[%clk 0:03:50.6]} 25... fxe6 {[%clk 0:03:23]} 26. Re4 {[%clk 0:03:43.3]}
26... Rxf4 {[%clk 0:03:17.9]} 27. Rxf4 {[%clk 0:03:41.3]} 27... Bxf4 {[%clk
0:03:15.8]} 28. Kf2 {[%clk 0:03:40.4]} 28... Rf8 {[%clk 0:03:07.4]} 29. Ke2
{[%clk 0:03:37.1]} 29... Kf7 {[%clk 0:03:03.7]} 30. Rf1 {[%clk 0:03:33.3]} 30...
Ke7 {[%clk 0:03:01.1]} 31. Ba3+ {[%clk 0:03:31.8]} 1-0

[Event "Live Chess"]
[Site "Chess.com"]
[Date "2024.06.01"]
[Round "-"]
[White "MaximKhimchenko"]
[Black "hapehansen"]
[Result "0-1"]
[WhiteElo "1799"]
[BlackElo "2246"]
[TimeControl "300"]
[EndTime "9:47:47 PDT"]
[Termination "hapehansen won by checkmate"]

1. e4 {[%clk 0:04:56.5]} 1... c6 {[%clk 0:04:58.3]} 2. Nf3 {[%clk 0:04:51.8]}
2... d5 {[%clk 0:04:55.2]} 3. exd5 {[%clk 0:04:51]} 3... cxd5 {[%clk 0:04:53.7]}
4. Bb5+ {[%clk 0:04:46.6]} 4... Nc6 {[%clk 0:04:48.5]} 5. O-O {[%clk 0:04:43.3]}
5... Nf6 {[%clk 0:04:45.5]} 6. Re1 {[%clk 0:04:35.2]} 6... Bg4 {[%clk
0:04:38.2]} 7. h3 {[%clk 0:04:31]} 7... Bh5 {[%clk 0:04:35.7]} 8. g4 {[%clk
0:04:28.3]} 8... Bg6 {[%clk 0:04:32.9]} 9. Ne5 {[%clk 0:04:24]} 9... Rc8 {[%clk
0:04:26.9]} 10. Bxc6+ {[%clk 0:04:16.8]} 10... bxc6 {[%clk 0:04:23.9]} 11. Nxg6
{[%clk 0:04:14.2]} 11... hxg6 {[%clk 0:04:21.5]} 12. Qf3 {[%clk 0:04:10.7]}
12... e6 {[%clk 0:04:11.8]} 13. d4 {[%clk 0:04:07.6]} 13... c5 {[%clk
0:04:04.3]} 14. c3 {[%clk 0:04:02.9]} 14... cxd4 {[%clk 0:04:00.9]} 15. cxd4
{[%clk 0:04:02.8]} 15... Qb6 {[%clk 0:03:57.3]} 16. Nc3 {[%clk 0:03:54.4]} 16...
Be7 {[%clk 0:03:41.9]} 17. Be3 {[%clk 0:03:33.3]} 17... Qxb2 {[%clk 0:03:27.5]}
18. Na4 {[%clk 0:03:28]} 18... Qb5 {[%clk 0:03:07.8]} 19. Qd1 {[%clk 0:03:09.2]}
19... Rxh3 {[%clk 0:02:59.1]} 20. Rb1 {[%clk 0:03:05.7]} 20... Qd7 {[%clk
0:02:55]} 21. Kg2 {[%clk 0:02:57.4]} 21... Rh4 {[%clk 0:02:50.8]} 22. f3 {[%clk
0:02:46.6]} 22... Bd6 {[%clk 0:02:30.7]} 23. Bg5 {[%clk 0:02:44]} 23... Rh2+
{[%clk 0:02:25.9]} 24. Kg1 {[%clk 0:02:39.2]} 24... Rxa2 {[%clk 0:02:23.2]} 25.
Nc5 {[%clk 0:02:32.7]} 25... Bxc5 {[%clk 0:02:18.7]} 26. dxc5 {[%clk 0:02:32]}
26... Qc7 {[%clk 0:02:11.6]} 27. Re2 {[%clk 0:02:18.5]} 27... Rxe2 {[%clk
0:02:03.5]} 28. Qxe2 {[%clk 0:02:16.3]} 28... Qxc5+ {[%clk 0:01:53.7]} 29. Be3
{[%clk 0:02:11.1]} 29... Qc2 {[%clk 0:01:44.8]} 30. Qb5+ {[%clk 0:02:08]} 30...
Qc6 {[%clk 0:01:40.7]} 31. Qb4 {[%clk 0:01:34.5]} 31... a6 {[%clk 0:01:33.8]}
32. g5 {[%clk 0:01:14.4]} 32... Nd7 {[%clk 0:01:28.8]} 33. Rc1 {[%clk
0:00:55.3]} 33... Qa8 {[%clk 0:01:26.7]} 34. Rxc8+ {[%clk 0:00:50]} 34... Qxc8
{[%clk 0:01:25.1]} 35. Qh4 {[%clk 0:00:49]} 35... Ke7 {[%clk 0:01:05.9]} 36.
Qb4+ {[%clk 0:00:46.2]} 36... Ke8 {[%clk 0:01:02.9]} 37. Qh4 {[%clk 0:00:44.9]}
37... Qc3 {[%clk 0:00:56.5]} 38. Bd4 {[%clk 0:00:31.5]} 38... Qxf3 {[%clk
0:00:51.4]} 39. Bxg7 {[%clk 0:00:26.8]} 39... e5 {[%clk 0:00:45.5]} 40. Qh8+
{[%clk 0:00:18.9]} 40... Ke7 {[%clk 0:00:44.1]} 41. Qc8 {[%clk 0:00:08]} 41...
Qg4+ {[%clk 0:00:37.9]} 42. Kf1 {[%clk 0:00:06.9]} 42... Qxg5 {[%clk 0:00:36.7]}
43. Qc7 {[%clk 0:00:04.5]} 43... Qf4+ {[%clk 0:00:33.2]} 44. Ke1 {[%clk
0:00:04]} 44... Qb4+ {[%clk 0:00:28.8]} 45. Kd1 {[%clk 0:00:03.9]} 45... Qd6
{[%clk 0:00:25.4]} 46. Ke2 {[%clk 0:00:03.8]} 46... Qxc7 {[%clk 0:00:23.9]} 47.
Bf8+ {[%clk 0:00:03.7]} 47... Kxf8 {[%clk 0:00:22.3]} 48. Kf3 {[%clk 0:00:03.6]}
48... Qc3+ {[%clk 0:00:21.1]} 49. Kg2 {[%clk 0:00:03.5]} 49... d4 {[%clk
0:00:20]} 50. Kh2 {[%clk 0:00:03.4]} 50... d3 {[%clk 0:00:19.3]} 51. Kg1 {[%clk
0:00:03.3]} 51... d2 {[%clk 0:00:18.6]} 52. Kg2 {[%clk 0:00:03]} 52... d1=Q
{[%clk 0:00:17]} 53. Kh2 {[%clk 0:00:02.9]} 53... Qdd2+ {[%clk 0:00:16.4]} 54.
Kh1 {[%clk 0:00:02.1]} 54... Qcc1# {[%clk 0:00:16.3]} 0-1

[Event "Live Chess"]
[Site "Chess.com"]
[Date "2024.06.01"]
[Round "-"]
[White "McFim"]
[Black "GerardATHart"]
[Result "1-0"]
[WhiteElo "1581"]
[BlackElo "1447"]
[TimeControl "300"]
[EndTime "9:47:54 PDT"]
[Termination "McFim won by resignation"]

1. e4 {[%clk 0:04:56.8]} 1... e5 {[%clk 0:04:58.1]} 2. Nf3 {[%clk 0:04:55.4]}
2... Nc6 {[%clk 0:04:56.6]} 3. Bb5 {[%clk 0:04:53.9]} 3... a6 {[%clk 0:04:55.1]}
4. Ba4 {[%clk 0:04:52.7]} 4... Nf6 {[%clk 0:04:53.5]} 5. O-O {[%clk 0:04:51.2]}
5... b5 {[%clk 0:04:52.2]} 6. Bb3 {[%clk 0:04:49.9]} 6... Bc5 {[%clk 0:04:50.4]}
7. Re1 {[%clk 0:04:47.3]} 7... d6 {[%clk 0:04:41.4]} 8. h3 {[%clk 0:04:45.9]}
8... O-O {[%clk 0:04:37.1]} 9. c3 {[%clk 0:04:44.7]} 9... h6 {[%clk 0:04:28.5]}
10. d4 {[%clk 0:04:42.4]} 10... exd4 {[%clk 0:04:25.2]} 11. cxd4 {[%clk
0:04:41.8]} 11... Bb6 {[%clk 0:04:20.2]} 12. Nc3 {[%clk 0:04:39]} 12... b4
{[%clk 0:03:56.7]} 13. Nd5 {[%clk 0:04:23.4]} 13... Nxd5 {[%clk 0:03:51.3]} 14.
Bxd5 {[%clk 0:04:18.2]} 14... Bd7 {[%clk 0:03:49.4]} 15. Be3 {[%clk 0:04:08.9]}
15... Rb8 {[%clk 0:03:36.1]} 16. Rc1 {[%clk 0:04:05]} 16... Ne7 {[%clk
0:03:31.2]} 17. Bb3 {[%clk 0:03:54.8]} 17... a5 {[%clk 0:03:28.6]} 18. Qd3
{[%clk 0:03:49.9]} 18... c5 {[%clk 0:02:50.9]} 19. dxc5 {[%clk 0:03:30.5]} 19...
dxc5 {[%clk 0:02:47.4]} 20. Bxc5 {[%clk 0:03:22.7]} 20... Bxc5 {[%clk
0:02:39.5]} 21. Rxc5 {[%clk 0:03:20.4]} 21... a4 {[%clk 0:02:20.5]} 22. Bc2
{[%clk 0:03:09.1]} 22... Bc6 {[%clk 0:02:00.1]} 23. Qxd8 {[%clk 0:03:06.2]}
23... Rfxd8 {[%clk 0:01:58.1]} 24. Rc1 {[%clk 0:02:55.3]} 24... Be8 {[%clk
0:01:41.5]} 25. Bb1 {[%clk 0:02:39.5]} 25... Ng6 {[%clk 0:01:19.7]} 26. e5
{[%clk 0:02:24.6]} 26... Nf4 {[%clk 0:01:16.8]} 27. Re1 {[%clk 0:02:09.1]} 27...
Bb5 {[%clk 0:00:54.8]} 28. h4 {[%clk 0:01:48.7]} 28... Nd3 {[%clk 0:00:50.6]}
29. Bxd3 {[%clk 0:01:46.4]} 29... Bxd3 {[%clk 0:00:48.9]} 30. e6 {[%clk
0:01:42.2]} 30... fxe6 {[%clk 0:00:44.4]} 31. Rxe6 {[%clk 0:01:40.3]} 31... Bb1
{[%clk 0:00:38]} 32. a3 {[%clk 0:01:36.9]} 32... Rd1+ {[%clk 0:00:34.6]} 33. Kh2
{[%clk 0:01:34.2]} 33... bxa3 {[%clk 0:00:33.1]} 34. bxa3 {[%clk 0:01:32.3]}
34... Ba2 {[%clk 0:00:30.3]} 35. Re7 {[%clk 0:01:30.6]} 35... Rbb1 {[%clk
0:00:28.3]} 36. Rcc7 {[%clk 0:01:27.7]} 36... Rh1+ {[%clk 0:00:26.1]} 37. Kg3
{[%clk 0:01:26.4]} 37... g5 {[%clk 0:00:24.1]} 38. hxg5 {[%clk 0:01:24.1]} 38...
hxg5 {[%clk 0:00:21.8]} 39. Rg7+ {[%clk 0:01:22.6]} 39... Kf8 {[%clk 0:00:20.2]}
40. Rxg5 {[%clk 0:01:20.1]} 40... Rb3 {[%clk 0:00:17.2]} 41. Ra5 {[%clk
0:01:17.9]} 41... Rd1 {[%clk 0:00:08.5]} 42. Ra8+ {[%clk 0:01:16]} 1-0

[Event "Live Chess"]
[Site "Chess.com"]
[Date "2024.06.01"]
[Round "-"]
[White "DarranAS"]
[Black "DJ_Lambton"]
[Result "0-1"]
[WhiteElo "1554"]
[BlackElo "1753"]
[TimeControl "300"]
[EndTime "9:47:56 PDT"]
[Termination "DJ_Lambton won by resignation"]

1. e4 {[%clk 0:04:56.2]} 1... c6 {[%clk 0:04:59.3]} 2. d4 {[%clk 0:04:53.7]}
2... d5 {[%clk 0:04:58.9]} 3. Nd2 {[%clk 0:04:52.6]} 3... dxe4 {[%clk 0:04:58]}
4. Nxe4 {[%clk 0:04:52.5]} 4... Bf5 {[%clk 0:04:57.6]} 5. Ng3 {[%clk 0:04:51.1]}
5... Bg6 {[%clk 0:04:57.1]} 6. h4 {[%clk 0:04:49.3]} 6... h6 {[%clk 0:04:56.4]}
7. h5 {[%clk 0:04:48.2]} 7... Bh7 {[%clk 0:04:55.7]} 8. Bd3 {[%clk 0:04:47.7]}
8... Bxd3 {[%clk 0:04:54.4]} 9. Qxd3 {[%clk 0:04:47.6]} 9... e6 {[%clk 0:04:54]}
10. Nf3 {[%clk 0:04:43.8]} 10... Nd7 {[%clk 0:04:53]} 11. Bf4 {[%clk 0:04:37.3]}
11... Qa5+ {[%clk 0:04:49.8]} 12. c3 {[%clk 0:04:35.5]} 12... Be7 {[%clk
0:04:48.6]} 13. O-O {[%clk 0:04:32.1]} 13... Ngf6 {[%clk 0:04:47.6]} 14. Rfe1
{[%clk 0:04:18.1]} 14... O-O {[%clk 0:04:44]} 15. Ne5 {[%clk 0:04:11]} 15...
Nxe5 {[%clk 0:04:41.4]} 16. Rxe5 {[%clk 0:04:03.9]} 16... Qb6 {[%clk 0:04:40.3]}
17. Re2 {[%clk 0:03:27.7]} 17... Qa5 {[%clk 0:04:31]} 18. Qf3 {[%clk 0:03:20.4]}
18... Rad8 {[%clk 0:04:25.8]} 19. b4 {[%clk 0:03:14.5]} 19... Qb6 {[%clk
0:04:22.9]} 20. Ne4 {[%clk 0:03:03.3]} 20... Nxe4 {[%clk 0:04:19.8]} 21. Rxe4
{[%clk 0:02:57.2]} 21... Qb5 {[%clk 0:04:14.1]} 22. Qg3 {[%clk 0:02:46.5]} 22...
Kh8 {[%clk 0:04:07.8]} 23. a4 {[%clk 0:02:42.3]} 23... Qd5 {[%clk 0:04:04.7]}
24. Re3 {[%clk 0:02:32.6]} 24... Qf5 {[%clk 0:03:56.2]} 25. Qf3 {[%clk
0:02:15.7]} 25... Rd5 {[%clk 0:03:52.8]} 26. Rae1 {[%clk 0:02:09.1]} 26... Qxh5
{[%clk 0:03:50.1]} 27. Re5 {[%clk 0:02:06.2]} 27... Qxf3 {[%clk 0:03:47.6]} 28.
gxf3 {[%clk 0:02:04.5]} 28... Rxe5 {[%clk 0:03:45.3]} 29. Bxe5 {[%clk
0:02:03.2]} 29... Rd8 {[%clk 0:03:41.7]} 30. Kg2 {[%clk 0:01:57.8]} 30... Bd6
{[%clk 0:03:39.8]} 31. Bxd6 {[%clk 0:01:53.7]} 31... Rxd6 {[%clk 0:03:39.7]} 32.
f4 {[%clk 0:01:49.5]} 32... Kg8 {[%clk 0:03:37.7]} 33. Kf3 {[%clk 0:01:47]}
33... Kf8 {[%clk 0:03:33.4]} 34. Re5 {[%clk 0:01:36.7]} 34... Ke7 {[%clk
0:03:32.1]} 35. f5 {[%clk 0:01:31.7]} 35... Rd5 {[%clk 0:03:31.3]} 36. fxe6
{[%clk 0:01:25.6]} 36... Rxe5 {[%clk 0:03:30.1]} 37. dxe5 {[%clk 0:01:23.3]}
37... Kxe6 {[%clk 0:03:29.1]} 38. Ke4 {[%clk 0:01:22]} 38... g5 {[%clk
0:03:26.3]} 0-1

[Event "Live Chess"]
[Site "Chess.com"]
[Date "2024.06.01"]
[Round "-"]
[White "Berdgross"]
[Black "CarmelJane"]
[Result "0-1"]
[WhiteElo "579"]
[BlackElo "2121"]
[TimeControl "300"]
[EndTime "9:47:57 PDT"]
[Termination "CarmelJane won by resignation"]

1. e4 {[%clk 0:04:55.5]} 1... c5 {[%clk 0:04:58.2]} 2. d3 {[%clk 0:04:54.4]}
2... Nc6 {[%clk 0:04:55.6]} 3. Nf3 {[%clk 0:04:54.3]} 3... e6 {[%clk 0:04:54.6]}
4. Nc3 {[%clk 0:04:53.5]} 4... a6 {[%clk 0:04:52.5]} 5. h3 {[%clk 0:04:53.2]}
5... b5 {[%clk 0:04:51.9]} 6. a3 {[%clk 0:04:51.9]} 6... Bb7 {[%clk 0:04:51.3]}
7. b4 {[%clk 0:04:49.4]} 7... cxb4 {[%clk 0:04:49.5]} 8. axb4 {[%clk 0:04:48.1]}
8... Bxb4 {[%clk 0:04:48.8]} 9. Bd2 {[%clk 0:04:43.4]} 9... Nf6 {[%clk
0:04:43.7]} 10. Be2 {[%clk 0:04:35.1]} 10... O-O {[%clk 0:04:41.2]} 11. O-O
{[%clk 0:04:33.6]} 11... Rc8 {[%clk 0:04:39]} 12. Na2 {[%clk 0:04:28.6]} 12...
Bxd2 {[%clk 0:04:37.3]} 13. Qxd2 {[%clk 0:04:26]} 13... d5 {[%clk 0:04:32.5]}
14. e5 {[%clk 0:04:23.6]} 14... Nd7 {[%clk 0:04:31.5]} 15. d4 {[%clk 0:04:19.9]}
15... Ne7 {[%clk 0:04:29.6]} 16. Nb4 {[%clk 0:04:14.5]} 16... a5 {[%clk
0:04:23.6]} 17. Nd3 {[%clk 0:04:05.4]} 17... b4 {[%clk 0:04:20.6]} 18. Nc5
{[%clk 0:03:57.3]} 18... Nxc5 {[%clk 0:04:19]} 19. dxc5 {[%clk 0:03:56.1]} 19...
Rxc5 {[%clk 0:04:18.3]} 20. Nd4 {[%clk 0:03:42.9]} 20... Qc7 {[%clk 0:04:11.3]}
21. f4 {[%clk 0:03:39.9]} 21... Nf5 {[%clk 0:04:07.8]} 22. Nxf5 {[%clk
0:03:37.3]} 22... exf5 {[%clk 0:04:07.7]} 23. Qxb4 {[%clk 0:03:27.9]} 23... axb4
{[%clk 0:04:05.4]} 0-1

[Event "Live Chess"]
[Site "Chess.com"]
[Date "2024.06.01"]
[Round "-"]
[White "NeilDruggan73"]
[Black "GwaryTek"]
[Result "1-0"]
[WhiteElo "1747"]
[BlackElo "1919"]
[TimeControl "300"]
[EndTime "9:47:59 PDT"]
[Termination "NeilDruggan73 won on time"]

1. d4 {[%clk 0:04:56.3]} 1... Nf6 {[%clk 0:04:59.9]} 2. Bg5 {[%clk 0:04:53.9]}
2... d5 {[%clk 0:04:58.1]} 3. Bxf6 {[%clk 0:04:52]} 3... gxf6 {[%clk 0:04:55.6]}
4. e3 {[%clk 0:04:49.3]} 4... Bf5 {[%clk 0:04:53.8]} 5. Bd3 {[%clk 0:04:39.3]}
5... Bg6 {[%clk 0:04:52.4]} 6. Nf3 {[%clk 0:04:31.9]} 6... e6 {[%clk 0:04:49.4]}
7. Nbd2 {[%clk 0:04:30]} 7... c5 {[%clk 0:04:48.2]} 8. Bxg6 {[%clk 0:04:23.2]}
8... hxg6 {[%clk 0:04:46.5]} 9. a3 {[%clk 0:04:14.6]} 9... Nc6 {[%clk
0:04:38.9]} 10. dxc5 {[%clk 0:04:12.2]} 10... Bxc5 {[%clk 0:04:37.2]} 11. b4
{[%clk 0:04:11.8]} 11... Bd6 {[%clk 0:04:34.3]} 12. Nb3 {[%clk 0:04:08]} 12...
f5 {[%clk 0:04:30.4]} 13. Qd2 {[%clk 0:03:57.5]} 13... Qf6 {[%clk 0:04:24.9]}
14. O-O {[%clk 0:03:45.2]} 14... Bxh2+ {[%clk 0:04:07.2]} 15. Nxh2 {[%clk
0:03:41.8]} 15... Qh4 {[%clk 0:04:04.9]} 16. f3 {[%clk 0:03:33.9]} 16... Qxh2+
{[%clk 0:04:00.8]} 17. Kf2 {[%clk 0:03:33.5]} 17... Qh4+ {[%clk 0:03:47]} 18.
Ke2 {[%clk 0:03:30.1]} 18... O-O-O {[%clk 0:03:26.6]} 19. Rac1 {[%clk
0:03:15.1]} 19... Ne5 {[%clk 0:02:52.3]} 20. Qc3+ {[%clk 0:03:02.8]} 20... Qc4+
{[%clk 0:02:47.2]} 21. Qxc4+ {[%clk 0:03:00.6]} 21... Nxc4 {[%clk 0:02:45.6]}
22. a4 {[%clk 0:02:56.2]} 22... b6 {[%clk 0:02:34.9]} 23. Nd4 {[%clk 0:02:34.3]}
23... Kb7 {[%clk 0:02:12.7]} 24. f4 {[%clk 0:02:32.8]} 24... Rh2 {[%clk
0:01:37.3]} 25. Rf2 {[%clk 0:02:16.7]} 25... Rc8 {[%clk 0:01:28.6]} 26. a5
{[%clk 0:01:59.2]} 26... Nd6 {[%clk 0:01:22.9]} 27. g3 {[%clk 0:01:38.6]} 27...
Rxf2+ {[%clk 0:01:15.8]} 28. Kxf2 {[%clk 0:01:37.2]} 28... Ne4+ {[%clk
0:01:14.9]} 29. Kg2 {[%clk 0:01:31.7]} 29... Rc3 {[%clk 0:01:12.7]} 30. Kf3
{[%clk 0:01:26.3]} 30... Nd2+ {[%clk 0:01:07.6]} 31. Ke2 {[%clk 0:01:23.3]}
31... Nc4 {[%clk 0:01:04.2]} 32. Rh1 {[%clk 0:01:11.5]} 32... Rxe3+ {[%clk
0:01:00.4]} 33. Kf2 {[%clk 0:01:07.7]} 33... Re4 {[%clk 0:00:53.4]} 34. Nb5
{[%clk 0:00:52]} 34... bxa5 {[%clk 0:00:47.9]} 35. bxa5 {[%clk 0:00:49.3]} 35...
Ka6 {[%clk 0:00:44.7]} 36. Rb1 {[%clk 0:00:37.7]} 36... Nb6 {[%clk 0:00:20.8]}
37. axb6 {[%clk 0:00:30.8]} 37... axb6 {[%clk 0:00:20.7]} 38. Nd6 {[%clk
0:00:26.4]} 38... Rd4 {[%clk 0:00:17.1]} 39. Ra1+ {[%clk 0:00:23.2]} 1-0

[Event "Live Chess"]
[Site "Chess.com"]
[Date "2024.06.01"]
[Round "-"]
[White "resipsa6"]
[Black "Andysav3"]
[Result "1/2-1/2"]
[WhiteElo "2036"]
[BlackElo "1860"]
[TimeControl "300"]
[EndTime "9:48:03 PDT"]
[Termination "Game drawn by repetition"]

1. e4 {[%clk 0:04:59.2]} 1... c5 {[%clk 0:04:58]} 2. c3 {[%clk 0:04:57.4]} 2...
Nf6 {[%clk 0:04:54.7]} 3. e5 {[%clk 0:04:55.5]} 3... Nd5 {[%clk 0:04:54.3]} 4.
d4 {[%clk 0:04:54.8]} 4... cxd4 {[%clk 0:04:46.3]} 5. cxd4 {[%clk 0:04:53.9]}
5... d6 {[%clk 0:04:41.3]} 6. exd6 {[%clk 0:04:52.9]} 6... Qxd6 {[%clk
0:04:38.9]} 7. Nc3 {[%clk 0:04:50.7]} 7... Nc6 {[%clk 0:04:20.8]} 8. Nf3 {[%clk
0:04:47.4]} 8... Bg4 {[%clk 0:04:16.3]} 9. Be2 {[%clk 0:04:46.4]} 9... e6 {[%clk
0:04:14]} 10. O-O {[%clk 0:04:45.2]} 10... a6 {[%clk 0:04:06.4]} 11. Nxd5 {[%clk
0:04:44.2]} 11... Qxd5 {[%clk 0:04:02]} 12. Be3 {[%clk 0:04:43.3]} 12... Be7
{[%clk 0:03:58.6]} 13. h3 {[%clk 0:04:39.6]} 13... Bh5 {[%clk 0:03:55.1]} 14. a3
{[%clk 0:04:31.6]} 14... O-O {[%clk 0:03:50.3]} 15. Rc1 {[%clk 0:04:29.3]} 15...
Rfd8 {[%clk 0:03:43.7]} 16. g4 {[%clk 0:04:14.6]} 16... Bg6 {[%clk 0:03:41.7]}
17. Bc4 {[%clk 0:04:11.4]} 17... Qd7 {[%clk 0:03:17.5]} 18. Qe2 {[%clk
0:04:05.7]} 18... Rac8 {[%clk 0:03:05.7]} 19. Rfd1 {[%clk 0:04:03.8]} 19... Na5
{[%clk 0:02:56.1]} 20. Ne5 {[%clk 0:03:50]} 20... Qa4 {[%clk 0:02:40]} 21. Bd3
{[%clk 0:03:37.9]} 21... Bf6 {[%clk 0:02:26.5]} 22. Bxg6 {[%clk 0:03:34.6]}
22... hxg6 {[%clk 0:02:24.8]} 23. Rxc8 {[%clk 0:03:30.6]} 23... Rxc8 {[%clk
0:02:23.6]} 24. Qf3 {[%clk 0:03:15.6]} 24... Rd8 {[%clk 0:01:59.8]} 25. b4
{[%clk 0:03:11.7]} 25... Bxe5 {[%clk 0:01:51.2]} 26. bxa5 {[%clk 0:03:10.4]}
26... Bxd4 {[%clk 0:01:36.2]} 27. Rxd4 {[%clk 0:03:05.9]} 27... Rxd4 {[%clk
0:01:33.6]} 28. Bxd4 {[%clk 0:03:04.8]} 28... Qxd4 {[%clk 0:01:32.2]} 29. Qxb7
{[%clk 0:03:04]} 29... Qd1+ {[%clk 0:01:25.7]} 30. Kh2 {[%clk 0:03:01.3]} 30...
Qd6+ {[%clk 0:01:24.3]} 31. Kg1 {[%clk 0:02:58.3]} 31... Qd1+ {[%clk 0:01:21.2]}
32. Kh2 {[%clk 0:02:57]} 32... Qd6+ {[%clk 0:01:19.8]} 33. Kg1 {[%clk
0:02:55.7]} 33... Qd1+ {[%clk 0:01:13.6]} 1/2-1/2

[Event "Live Chess"]
[Site "Chess.com"]
[Date "2024.06.01"]
[Round "-"]
[White "JohanKjeldahl"]
[Black "viktor_forever1994"]
[Result "1-0"]
[WhiteElo "1801"]
[BlackElo "1409"]
[TimeControl "300"]
[EndTime "9:48:04 PDT"]
[Termination "JohanKjeldahl won by checkmate"]

1. e4 {[%clk 0:04:56.3]} 1... e5 {[%clk 0:04:59.3]} 2. Nf3 {[%clk 0:04:54.2]}
2... Nc6 {[%clk 0:04:58.4]} 3. d4 {[%clk 0:04:53.1]} 3... exd4 {[%clk
0:04:57.2]} 4. c3 {[%clk 0:04:52.3]} 4... dxc3 {[%clk 0:04:56.1]} 5. Bc4 {[%clk
0:04:51.3]} 5... d6 {[%clk 0:04:51.2]} 6. Nxc3 {[%clk 0:04:48.8]} 6... h6 {[%clk
0:04:49]} 7. O-O {[%clk 0:04:44.1]} 7... Bg4 {[%clk 0:04:47.3]} 8. h3 {[%clk
0:04:41.8]} 8... Bh5 {[%clk 0:04:45.3]} 9. Bf4 {[%clk 0:04:36.9]} 9... Be7
{[%clk 0:04:33.3]} 10. Qb3 {[%clk 0:04:33.5]} 10... Rb8 {[%clk 0:04:23.2]} 11.
Bd5 {[%clk 0:04:19]} 11... Nf6 {[%clk 0:04:15.9]} 12. g4 {[%clk 0:04:06.4]}
12... Bg6 {[%clk 0:04:06.3]} 13. Rad1 {[%clk 0:04:01.9]} 13... O-O {[%clk
0:03:48.9]} 14. Nh4 {[%clk 0:03:51.5]} 14... Bxe4 {[%clk 0:03:27.5]} 15. Bxc6
{[%clk 0:03:28.1]} 15... Bxc6 {[%clk 0:03:10]} 16. Nf5 {[%clk 0:03:25.7]} 16...
Nd7 {[%clk 0:02:46.2]} 17. Rfe1 {[%clk 0:03:20.9]} 17... Nc5 {[%clk 0:02:10.1]}
18. Qc2 {[%clk 0:03:14.1]} 18... Bg5 {[%clk 0:01:52.1]} 19. Ne2 {[%clk
0:02:49.8]} 19... Re8 {[%clk 0:01:39.9]} 20. Qc3 {[%clk 0:02:30.4]} 20... Bf6
{[%clk 0:01:19.7]} 21. Qc1 {[%clk 0:02:20.9]} 21... Bg5 {[%clk 0:00:46.4]} 22.
Ned4 {[%clk 0:02:06.6]} 22... Bxf4 {[%clk 0:00:29.1]} 23. Qxf4 {[%clk
0:02:04.4]} 23... Rxe1+ {[%clk 0:00:10.7]} 24. Rxe1 {[%clk 0:02:02.4]} 24... Nd3
{[%clk 0:00:09.3]} 25. Nxc6 {[%clk 0:01:55.7]} 25... bxc6 {[%clk 0:00:08.1]} 26.
Qd4 {[%clk 0:01:50.5]} 26... Nxe1 {[%clk 0:00:06.3]} 27. Qxg7# {[%clk
0:01:48.5]} 1-0